[Event "Late-Titled-Tuesday-Blitz-May-14-2024"]
[Site "Chess.com"]
[Date "2024.05.14"]
[Round "8"]
[White "GMthekingindian"]
[Black "SHIVACalypso"]
[Result "0-1"]
[WhiteElo "2323"]
[BlackElo "2552"]
[TimeControl "180+1"]
[EndTime "15:29:50 PDT"]
[Termination "SHIVACalypso won by checkmate"]

1. d4 {[%clk 0:03:00.9]} 1... Nf6 {[%clk 0:02:57.2]} 2. Nf3 {[%clk 0:03:01.4]}
2... c5 {[%clk 0:02:56.2]} 3. d5 {[%clk 0:03:00.4]} 3... e6 {[%clk 0:02:49.2]}
4. Nc3 {[%clk 0:02:58.5]} 4... exd5 {[%clk 0:02:47.5]} 5. Nxd5 {[%clk 0:02:59]}
5... d6 {[%clk 0:02:44.1]} 6. Bg5 {[%clk 0:02:56]} 6... Be7 {[%clk 0:02:42.7]}
7. Bxf6 {[%clk 0:02:51]} 7... Bxf6 {[%clk 0:02:40.5]} 8. c3 {[%clk 0:02:51]}
8... O-O {[%clk 0:02:34.3]} 9. Qd2 {[%clk 0:02:48.2]} 9... Be6 {[%clk
0:02:17.4]} 10. Nxf6+ {[%clk 0:02:42.1]} 10... Qxf6 {[%clk 0:02:18.3]} 11. Qxd6
{[%clk 0:02:42.3]} 11... Rd8 {[%clk 0:02:12.3]} 12. Qe5 {[%clk 0:02:41.2]} 12...
Qg6 {[%clk 0:02:12.3]} 13. g3 {[%clk 0:02:17.6]} 13... Nc6 {[%clk 0:02:10.7]}
14. Qxc5 {[%clk 0:02:17.4]} 14... Rd5 {[%clk 0:01:23.6]} 15. Qe3 {[%clk
0:02:05.2]} 15... Qc2 {[%clk 0:00:42.6]} 16. Bg2 {[%clk 0:02:04.4]} 16... Qxb2
{[%clk 0:00:41.3]} 17. O-O {[%clk 0:02:05]} 17... Ra5 {[%clk 0:00:34.4]} 18. Nd4
{[%clk 0:01:58]} 18... Nxd4 {[%clk 0:00:28.1]} 19. cxd4 {[%clk 0:01:56.6]} 19...
Bxa2 {[%clk 0:00:24.9]} 20. Bxb7 {[%clk 0:01:14.2]} 20... Qxb7 {[%clk
0:00:20.4]} 21. Qd2 {[%clk 0:01:14.5]} 21... Qa6 {[%clk 0:00:19.4]} 22. d5
{[%clk 0:01:10.7]} 22... Rd8 {[%clk 0:00:18.9]} 23. e4 {[%clk 0:01:10.8]} 23...
g6 {[%clk 0:00:17.9]} 24. Rfc1 {[%clk 0:01:07.8]} 24... Ra4 {[%clk 0:00:15.3]}
25. Rc7 {[%clk 0:00:50.3]} 25... Qa5 {[%clk 0:00:05]} 26. Qf4 {[%clk 0:00:33.6]}
26... Bxd5 {[%clk 0:00:03.3]} 27. Rxa4 {[%clk 0:00:30.6]} 27... Qxa4 {[%clk
0:00:03.3]} 28. exd5 {[%clk 0:00:31.2]} 28... Qxf4 {[%clk 0:00:02.9]} 29. gxf4
{[%clk 0:00:25.1]} 29... a5 {[%clk 0:00:03.2]} 30. Rc5 {[%clk 0:00:23.9]} 30...
a4 {[%clk 0:00:03.7]} 31. Ra5 {[%clk 0:00:23.9]} 31... a3 {[%clk 0:00:03.1]} 32.
Kg2 {[%clk 0:00:22.7]} 32... a2 {[%clk 0:00:03.3]} 33. Rxa2 {[%clk 0:00:16]}
33... Rxd5 {[%clk 0:00:04.2]} 34. f3 {[%clk 0:00:16.6]} 34... Kg7 {[%clk
0:00:04.2]} 35. Kg3 {[%clk 0:00:17.1]} 35... h5 {[%clk 0:00:04.2]} 36. Ra6
{[%clk 0:00:16.1]} 36... Rd2 {[%clk 0:00:04.5]} 37. Ra5 {[%clk 0:00:15.3]} 37...
Kh6 {[%clk 0:00:04.6]} 38. f5 {[%clk 0:00:14]} 38... h4+ {[%clk 0:00:03.9]} 39.
Kxh4 {[%clk 0:00:13]} 39... Rxh2+ {[%clk 0:00:03.9]} 40. Kg3 {[%clk 0:00:12.3]}
40... Rh5 {[%clk 0:00:04.4]} 41. Kg4 {[%clk 0:00:10.3]} 41... Rg5+ {[%clk
0:00:04]} 42. Kf4 {[%clk 0:00:10.7]} 42... Rh5 {[%clk 0:00:03.9]} 43. Re5 {[%clk
0:00:07.9]} 43... f6 {[%clk 0:00:03.7]} 44. Ra5 {[%clk 0:00:07.3]} 44... g5+
{[%clk 0:00:02.5]} 45. Kg3 {[%clk 0:00:04.3]} 45... Rh1 {[%clk 0:00:02.9]} 46.
Ra6 {[%clk 0:00:04.2]} 46... Kg7 {[%clk 0:00:02.9]} 47. Ra7+ {[%clk 0:00:04.4]}
47... Kh6 {[%clk 0:00:03.4]} 48. Ra6 {[%clk 0:00:04.5]} 48... Kg7 {[%clk
0:00:03.5]} 49. Ra7+ {[%clk 0:00:05.1]} 49... Kg8 {[%clk 0:00:03.5]} 50. Ra6
{[%clk 0:00:02.9]} 50... Kf7 {[%clk 0:00:03.7]} 51. Ra7+ {[%clk 0:00:03.5]}
51... Kf8 {[%clk 0:00:04.2]} 52. Ra8+ {[%clk 0:00:04]} 52... Ke7 {[%clk
0:00:04.1]} 53. Ra7+ {[%clk 0:00:04.9]} 53... Kd6 {[%clk 0:00:03.8]} 54. Ra5
{[%clk 0:00:04]} 54... Rg1+ {[%clk 0:00:03]} 55. Kf2 {[%clk 0:00:04.2]} 55...
Rb1 {[%clk 0:00:03.2]} 56. Kg3 {[%clk 0:00:03]} 56... Rb4 {[%clk 0:00:03.7]} 57.
Kg2 {[%clk 0:00:02]} 57... Rd4 {[%clk 0:00:04]} 58. Kg3 {[%clk 0:00:01.3]} 58...
Rd5 {[%clk 0:00:04.3]} 59. Ra6+ {[%clk 0:00:01.6]} 59... Ke5 {[%clk 0:00:04.8]}
60. Ra7 {[%clk 0:00:01.9]} 60... Kxf5 {[%clk 0:00:05]} 61. Ra3 {[%clk
0:00:02.4]} 61... Rd4 {[%clk 0:00:05.1]} 62. Rb3 {[%clk 0:00:02.5]} 62... Rd5
{[%clk 0:00:05.3]} 63. Ra3 {[%clk 0:00:02.9]} 63... Re5 {[%clk 0:00:05.4]} 64.
Rb3 {[%clk 0:00:03.3]} 64... Ra5 {[%clk 0:00:05.7]} 65. Rc3 {[%clk 0:00:03.6]}
65... Ra4 {[%clk 0:00:06.1]} 66. Rd3 {[%clk 0:00:03.8]} 66... Ra1 {[%clk
0:00:05.8]} 67. Rc3 {[%clk 0:00:04]} 67... Rg1+ {[%clk 0:00:06.4]} 68. Kf2
{[%clk 0:00:04.6]} 68... Rh1 {[%clk 0:00:06.5]} 69. Kg2 {[%clk 0:00:05.1]} 69...
Ra1 {[%clk 0:00:06.8]} 70. Kg3 {[%clk 0:00:05.5]} 70... Rb1 {[%clk 0:00:07.2]}
71. Rd3 {[%clk 0:00:05.9]} 71... Rb5 {[%clk 0:00:07.6]} 72. Rc3 {[%clk
0:00:06.2]} 72... Rb4 {[%clk 0:00:07.8]} 73. Rc5+ {[%clk 0:00:06.2]} 73... Kg6
{[%clk 0:00:07.8]} 74. Rc3 {[%clk 0:00:07.1]} 74... f5 {[%clk 0:00:08]} 75. Rc6+
{[%clk 0:00:07.2]} 75... Kh5 {[%clk 0:00:08.3]} 76. Rc8 {[%clk 0:00:05.2]} 76...
Rb3 {[%clk 0:00:07.5]} 77. Rh8+ {[%clk 0:00:04.6]} 77... Kg6 {[%clk 0:00:07.8]}
78. Rg8+ {[%clk 0:00:05.2]} 78... Kf6 {[%clk 0:00:07.9]} 79. Rf8+ {[%clk
0:00:05.8]} 79... Ke6 {[%clk 0:00:08.1]} 80. Re8+ {[%clk 0:00:06.3]} 80... Kd7
{[%clk 0:00:08.2]} 81. Rg8 {[%clk 0:00:06]} 81... g4 {[%clk 0:00:08.2]} 82. Rf8
{[%clk 0:00:01.1]} 82... Rxf3+ {[%clk 0:00:08]} 83. Kg2 {[%clk 0:00:01.7]} 83...
Ke6 {[%clk 0:00:08.5]} 84. Re8+ {[%clk 0:00:01.1]} 84... Kf6 {[%clk 0:00:08.8]}
85. Re1 {[%clk 0:00:01.4]} 85... Ra3 {[%clk 0:00:08.2]} 86. Rc1 {[%clk
0:00:01.8]} 86... Ra2+ {[%clk 0:00:07.9]} 87. Kg3 {[%clk 0:00:02]} 87... Kg5
{[%clk 0:00:08]} 88. Rc5 {[%clk 0:00:01.9]} 88... Ra3+ {[%clk 0:00:07.9]} 89.
Kg2 {[%clk 0:00:02.5]} 89... g3 {[%clk 0:00:06.7]} 90. Rc8 {[%clk 0:00:02.2]}
90... Kf4 {[%clk 0:00:05]} 91. Rc4+ {[%clk 0:00:01.9]} 91... Kg5 {[%clk
0:00:05.4]} 92. Rc8 {[%clk 0:00:02.8]} 92... Kg4 {[%clk 0:00:05.4]} 93. Rg8+
{[%clk 0:00:03.3]} 93... Kf4 {[%clk 0:00:05.6]} 94. Rc8 {[%clk 0:00:04.2]} 94...
Ra2+ {[%clk 0:00:05.7]} 95. Kg1 {[%clk 0:00:04.9]} 95... Kg4 {[%clk 0:00:05.7]}
96. Rc3 {[%clk 0:00:03.8]} 96... f4 {[%clk 0:00:05.9]} 97. Rb3 {[%clk 0:00:04]}
97... f3 {[%clk 0:00:05.2]} 98. Rb1 {[%clk 0:00:03.9]} 98... Kh3 {[%clk
0:00:04.8]} 99. Rc1 {[%clk 0:00:02.7]} 99... f2+ {[%clk 0:00:04.6]} 100. Kf1
{[%clk 0:00:01.7]} 100... g2# {[%clk 0:00:04.6]} 0-1

[Event "Late-Titled-Tuesday-Blitz-May-14-2024"]
[Site "Chess.com"]
[Date "2024.05.14"]
[Round "9"]
[White "rhwr"]
[Black "Veleamater"]
[Result "0-1"]
[WhiteElo "2302"]
[BlackElo "2441"]
[TimeControl "180+1"]
[EndTime "15:38:13 PDT"]
[Termination "Veleamater won by resignation"]

1. e4 {[%clk 0:03:00.9]} 1... e5 {[%clk 0:03:00]} 2. Nf3 {[%clk 0:02:59.8]} 2...
Nc6 {[%clk 0:03:00.5]} 3. Bb5 {[%clk 0:02:59.6]} 3... f5 {[%clk 0:03:01]} 4. d3
{[%clk 0:02:58.7]} 4... fxe4 {[%clk 0:03:00.4]} 5. dxe4 {[%clk 0:02:59]} 5...
Nf6 {[%clk 0:03:01]} 6. Bxc6 {[%clk 0:02:55.6]} 6... bxc6 {[%clk 0:02:59.4]} 7.
O-O {[%clk 0:02:50.6]} 7... Bc5 {[%clk 0:02:58.5]} 8. Bg5 {[%clk 0:02:43.9]}
8... d6 {[%clk 0:02:54.5]} 9. Nbd2 {[%clk 0:02:36.4]} 9... O-O {[%clk
0:02:53.6]} 10. Nb3 {[%clk 0:02:35.7]} 10... Bb6 {[%clk 0:02:52.3]} 11. a4
{[%clk 0:02:35.8]} 11... a5 {[%clk 0:02:49.5]} 12. c4 {[%clk 0:02:29.8]} 12...
Be6 {[%clk 0:02:44.3]} 13. c5 {[%clk 0:02:23]} 13... dxc5 {[%clk 0:02:37.5]} 14.
Qc2 {[%clk 0:02:13.5]} 14... c4 {[%clk 0:02:32.1]} 15. Nbd2 {[%clk 0:02:09.7]}
15... Qd3 {[%clk 0:02:30.2]} 16. Nxe5 {[%clk 0:02:01.3]} 16... Qxc2 {[%clk
0:02:28.9]} 0-1

[Event "Late-Titled-Tuesday-Blitz-May-14-2024"]
[Site "Chess.com"]
[Date "2024.05.14"]
[Round "9"]
[White "YouShallNotPass001"]
[Black "VelandiaSaurio"]
[Result "0-1"]
[WhiteElo "2507"]
[BlackElo "2636"]
[TimeControl "180+1"]
[EndTime "15:38:25 PDT"]
[Termination "VelandiaSaurio won by resignation"]

1. e4 {[%clk 0:03:00.9]} 1... c5 {[%clk 0:02:59.5]} 2. Nf3 {[%clk 0:03:00.8]}
2... Nc6 {[%clk 0:02:59.4]} 3. Bb5 {[%clk 0:02:59.3]} 3... g6 {[%clk 0:02:58.4]}
4. O-O {[%clk 0:02:57.4]} 4... Bg7 {[%clk 0:02:57.1]} 5. Bxc6 {[%clk 0:02:57.6]}
5... dxc6 {[%clk 0:02:55.3]} 6. d3 {[%clk 0:02:57.9]} 6... Nf6 {[%clk
0:02:52.1]} 7. h3 {[%clk 0:02:56.9]} 7... Nd7 {[%clk 0:02:48.2]} 8. Qe2 {[%clk
0:02:56.6]} 8... Nf8 {[%clk 0:02:45.9]} 9. Nc3 {[%clk 0:02:55.1]} 9... Ne6
{[%clk 0:02:45.3]} 10. Be3 {[%clk 0:02:53.3]} 10... Nd4 {[%clk 0:02:43.2]} 11.
Qd1 {[%clk 0:02:53.4]} 11... O-O {[%clk 0:02:41.3]} 12. Nd2 {[%clk 0:02:47.1]}
12... f5 {[%clk 0:02:39.6]} 13. f4 {[%clk 0:02:46.2]} 13... fxe4 {[%clk
0:02:36.8]} 14. Ndxe4 {[%clk 0:02:43.5]} 14... b6 {[%clk 0:02:34]} 15. Qd2
{[%clk 0:02:34.7]} 15... Nf5 {[%clk 0:02:34.1]} 16. Bf2 {[%clk 0:02:34.5]} 16...
Be6 {[%clk 0:02:33.6]} 17. Rae1 {[%clk 0:02:33.5]} 17... Qd7 {[%clk 0:02:31.1]}
18. Ng5 {[%clk 0:02:31.1]} 18... Bf7 {[%clk 0:02:31.6]} 19. Nxf7 {[%clk
0:02:29.8]} 19... Rxf7 {[%clk 0:02:32.5]} 20. Ne4 {[%clk 0:02:28.7]} 20... h6
{[%clk 0:02:30.4]} 21. Re2 {[%clk 0:02:23.3]} 21... Raf8 {[%clk 0:02:27.8]} 22.
Rfe1 {[%clk 0:02:22.8]} 22... Nd4 {[%clk 0:02:26.2]} 23. Bxd4 {[%clk 0:02:22.6]}
23... Bxd4+ {[%clk 0:02:24.7]} 24. Kh1 {[%clk 0:02:21.6]} 24... Bg7 {[%clk
0:02:25.6]} 25. g3 {[%clk 0:02:19.6]} 25... e5 {[%clk 0:02:23.7]} 26. fxe5
{[%clk 0:02:19.2]} 26... Qxh3+ {[%clk 0:02:23.5]} 0-1

[Event "Late-Titled-Tuesday-Blitz-May-14-2024"]
[Site "Chess.com"]
[Date "2024.05.14"]
[Round "9"]
[White "ReadySkate"]
[Black "EsmeraldasAnderson03"]
[Result "1-0"]
[WhiteElo "2742"]
[BlackElo "2550"]
[TimeControl "180+1"]
[EndTime "15:39:12 PDT"]
[Termination "ReadySkate won by resignation"]

1. d4 {[%clk 0:03:00.9]} 1... d5 {[%clk 0:02:59.7]} 2. c4 {[%clk 0:03:01.1]}
2... dxc4 {[%clk 0:03:00.6]} 3. e4 {[%clk 0:03:01]} 3... e5 {[%clk 0:03:00.2]}
4. Nf3 {[%clk 0:03:00.7]} 4... exd4 {[%clk 0:02:54.1]} 5. Bxc4 {[%clk
0:02:58.5]} 5... Nf6 {[%clk 0:02:50.5]} 6. O-O {[%clk 0:02:58.1]} 6... Be7
{[%clk 0:02:47.3]} 7. e5 {[%clk 0:02:58.1]} 7... Nd5 {[%clk 0:02:46.9]} 8. Qxd4
{[%clk 0:02:57.4]} 8... Be6 {[%clk 0:02:45.5]} 9. Nc3 {[%clk 0:02:54.6]} 9...
Nxc3 {[%clk 0:02:42.6]} 10. Qxc3 {[%clk 0:02:55.5]} 10... Bxc4 {[%clk
0:02:41.7]} 11. Qxc4 {[%clk 0:02:56.4]} 11... O-O {[%clk 0:02:41.4]} 12. Be3
{[%clk 0:02:53.5]} 12... c6 {[%clk 0:02:36.2]} 13. e6 {[%clk 0:02:53.6]} 13...
Bf6 {[%clk 0:02:34.1]} 14. exf7+ {[%clk 0:02:52.5]} 14... Rxf7 {[%clk
0:02:34.3]} 15. Rad1 {[%clk 0:02:52.7]} 15... Qc7 {[%clk 0:02:19.1]} 16. Bf4
{[%clk 0:02:51.9]} 16... Qb6 {[%clk 0:02:16.3]} 17. Rfe1 {[%clk 0:02:43.8]} 1-0

[Event "Late-Titled-Tuesday-Blitz-May-14-2024"]
[Site "Chess.com"]
[Date "2024.05.14"]
[Round "9"]
[White "dianamirza"]
[Black "ritanovikova"]
[Result "0-1"]
[WhiteElo "1967"]
[BlackElo "2167"]
[TimeControl "180+1"]
[EndTime "15:40:12 PDT"]
[Termination "ritanovikova won by resignation"]

1. e4 {[%clk 0:02:30.8]} 1... d5 {[%clk 0:02:57.7]} 2. exd5 {[%clk 0:02:30.6]}
2... Qxd5 {[%clk 0:02:57.7]} 3. Nc3 {[%clk 0:02:31.1]} 3... Qd6 {[%clk
0:02:57.6]} 4. d4 {[%clk 0:02:31.4]} 4... Nf6 {[%clk 0:02:58.2]} 5. Nf3 {[%clk
0:02:29]} 5... Bg4 {[%clk 0:02:57.7]} 6. Be3 {[%clk 0:02:19.1]} 6... c6 {[%clk
0:02:54.2]} 7. h3 {[%clk 0:02:17.9]} 7... Bh5 {[%clk 0:02:53.6]} 8. g4 {[%clk
0:02:16.3]} 8... Bg6 {[%clk 0:02:53.3]} 9. Bc4 {[%clk 0:02:08.1]} 9... e6 {[%clk
0:02:49]} 10. Ne5 {[%clk 0:02:07.7]} 10... Ne4 {[%clk 0:02:45]} 11. Nxe4 {[%clk
0:01:49.4]} 11... Bxe4 {[%clk 0:02:45.9]} 12. f3 {[%clk 0:01:47.2]} 12... Bd5
{[%clk 0:02:45.6]} 13. Bxd5 {[%clk 0:01:45.7]} 13... cxd5 {[%clk 0:02:42.2]} 14.
Qd3 {[%clk 0:01:40.5]} 14... Qa6 {[%clk 0:02:30.7]} 15. O-O-O {[%clk 0:01:24]}
15... Qxd3 {[%clk 0:02:29.6]} 16. Rxd3 {[%clk 0:01:23.1]} 16... Nd7 {[%clk
0:02:26.7]} 17. Nxd7 {[%clk 0:01:22.5]} 17... Kxd7 {[%clk 0:02:26.6]} 18. Rb3
{[%clk 0:01:14.2]} 18... b6 {[%clk 0:02:22.9]} 19. Bf4 {[%clk 0:01:12.1]} 19...
Bd6 {[%clk 0:02:21.9]} 20. Bxd6 {[%clk 0:01:11.6]} 20... Kxd6 {[%clk 0:02:22.8]}
21. Re1 {[%clk 0:01:09.9]} 21... Rhc8 {[%clk 0:02:20]} 22. Rbe3 {[%clk
0:01:07.8]} 22... Rc4 {[%clk 0:02:17.8]} 23. c3 {[%clk 0:01:08]} 23... b5 {[%clk
0:02:18.3]} 24. Kd2 {[%clk 0:01:08.5]} 24... b4 {[%clk 0:02:18]} 25. b3 {[%clk
0:01:06.1]} 25... bxc3+ {[%clk 0:02:17.8]} 26. Rxc3 {[%clk 0:01:07]} 26... Rxd4+
{[%clk 0:02:17.5]} 27. Ke3 {[%clk 0:01:02.8]} 27... Rb4 {[%clk 0:02:14.5]} 28.
Rec1 {[%clk 0:01:02.4]} 28... d4+ {[%clk 0:02:14.1]} 29. Ke2 {[%clk 0:00:57.8]}
29... dxc3 {[%clk 0:02:13.9]} 30. Rxc3 {[%clk 0:00:57.8]} 0-1

[Event "Late-Titled-Tuesday-Blitz-May-14-2024"]
[Site "Chess.com"]
[Date "2024.05.14"]
[Round "9"]
[White "HandKnit"]
[Black "ClauAmura"]
[Result "1-0"]
[WhiteElo "2503"]
[BlackElo "2338"]
[TimeControl "180+1"]
[EndTime "15:40:22 PDT"]
[Termination "HandKnit won by resignation"]

1. c4 {[%clk 0:03:00.9]} 1... e6 {[%clk 0:02:59.4]} 2. Nc3 {[%clk 0:03:00.3]}
2... d5 {[%clk 0:03:00]} 3. cxd5 {[%clk 0:03:01.2]} 3... exd5 {[%clk 0:02:59.8]}
4. d4 {[%clk 0:03:01.8]} 4... Be7 {[%clk 0:02:59.7]} 5. Bf4 {[%clk 0:02:55.3]}
5... c6 {[%clk 0:02:58.5]} 6. e3 {[%clk 0:02:54.6]} 6... Bf5 {[%clk 0:02:58.3]}
7. Nge2 {[%clk 0:02:51]} 7... Nf6 {[%clk 0:02:57.4]} 8. Ng3 {[%clk 0:02:50.5]}
8... Bg6 {[%clk 0:02:57.2]} 9. h4 {[%clk 0:02:49.2]} 9... h5 {[%clk 0:02:50.5]}
10. Bd3 {[%clk 0:02:46.6]} 10... Bxd3 {[%clk 0:02:49.8]} 11. Qxd3 {[%clk
0:02:47.5]} 11... g6 {[%clk 0:02:49.5]} 12. f3 {[%clk 0:02:36.9]} 12... Na6
{[%clk 0:02:48.4]} 13. O-O-O {[%clk 0:02:34.6]} 13... Nb4 {[%clk 0:02:32.6]} 14.
Qe2 {[%clk 0:02:34.6]} 14... O-O {[%clk 0:02:20]} 15. a3 {[%clk 0:02:32.4]}
15... Na6 {[%clk 0:02:19.1]} 16. e4 {[%clk 0:02:32.6]} 16... Nc7 {[%clk
0:02:16.1]} 17. Be5 {[%clk 0:02:23.4]} 17... Ne6 {[%clk 0:02:14.1]} 18. f4
{[%clk 0:02:16.7]} 18... Nxe4 {[%clk 0:02:01.7]} 19. Ncxe4 {[%clk 0:02:11]}
19... dxe4 {[%clk 0:02:02.6]} 20. f5 {[%clk 0:02:11]} 20... Ng7 {[%clk
0:01:46.8]} 21. fxg6 {[%clk 0:02:02.1]} 21... fxg6 {[%clk 0:01:47.7]} 22. Qxe4
{[%clk 0:02:01.5]} 22... Nf5 {[%clk 0:01:42.4]} 23. Nxf5 {[%clk 0:01:57.3]}
23... Rxf5 {[%clk 0:01:41.8]} 24. g4 {[%clk 0:01:57]} 24... Bg5+ {[%clk
0:01:23.3]} 25. Kb1 {[%clk 0:01:35.5]} 25... hxg4 {[%clk 0:01:21.7]} 26. hxg5
{[%clk 0:01:34]} 1-0

[Event "Late-Titled-Tuesday-Blitz-May-14-2024"]
[Site "Chess.com"]
[Date "2024.05.14"]
[Round "9"]
[White "Mikhail_Golubev"]
[Black "Slovineanu"]
[Result "1-0"]
[WhiteElo "2594"]
[BlackElo "2474"]
[TimeControl "180+1"]
[EndTime "15:40:37 PDT"]
[Termination "Mikhail_Golubev won by resignation"]

1. e4 {[%clk 0:03:00.9]} 1... c6 {[%clk 0:02:58.6]} 2. d4 {[%clk 0:03:00.7]}
2... d5 {[%clk 0:02:58.8]} 3. e5 {[%clk 0:03:01.2]} 3... Bf5 {[%clk 0:02:58.4]}
4. h4 {[%clk 0:03:00.8]} 4... h5 {[%clk 0:02:58.5]} 5. c4 {[%clk 0:03:01]} 5...
e6 {[%clk 0:02:58.7]} 6. Nc3 {[%clk 0:03:01.2]} 6... Bb4 {[%clk 0:02:59]} 7. a3
{[%clk 0:02:49.2]} 7... Bxc3+ {[%clk 0:02:56.5]} 8. bxc3 {[%clk 0:02:50.1]} 8...
Ne7 {[%clk 0:02:53.3]} 9. Bg5 {[%clk 0:02:45.4]} 9... dxc4 {[%clk 0:02:47.4]}
10. Bxc4 {[%clk 0:02:40.9]} 10... b5 {[%clk 0:02:46.4]} 11. Bd3 {[%clk
0:02:33.1]} 11... Bxd3 {[%clk 0:02:44.1]} 12. Qxd3 {[%clk 0:02:34]} 12... Nd7
{[%clk 0:02:44.1]} 13. Rd1 {[%clk 0:02:28.6]} 13... Nb6 {[%clk 0:02:42.8]} 14.
Ne2 {[%clk 0:02:28.2]} 14... Nc4 {[%clk 0:02:35.9]} 15. Qg3 {[%clk 0:02:22.4]}
15... g6 {[%clk 0:02:18.1]} 16. O-O {[%clk 0:02:14.2]} 16... Qd7 {[%clk
0:02:14.8]} 17. Qf3 {[%clk 0:02:01]} 17... Nf5 {[%clk 0:02:07]} 18. Nf4 {[%clk
0:01:59.5]} 18... Nxa3 {[%clk 0:01:59.4]} 19. Bf6 {[%clk 0:01:53.5]} 19... Rg8
{[%clk 0:01:50.7]} 20. d5 {[%clk 0:01:45.4]} 20... cxd5 {[%clk 0:01:45.6]} 21.
Nxd5 {[%clk 0:01:45.7]} 21... exd5 {[%clk 0:01:26.8]} 22. Rxd5 {[%clk
0:01:46.6]} 22... Qc7 {[%clk 0:01:22.2]} 23. Rfd1 {[%clk 0:01:41.7]} 23... Nc4
{[%clk 0:01:11.2]} 24. Rd7 {[%clk 0:01:30.2]} 24... Qc8 {[%clk 0:00:56.8]} 25.
Qxa8 {[%clk 0:01:28.2]} 1-0

[Event "Late-Titled-Tuesday-Blitz-May-14-2024"]
[Site "Chess.com"]
[Date "2024.05.14"]
[Round "9"]
[White "lucasmito"]
[Black "super_emi_26"]
[Result "0-1"]
[WhiteElo "2740"]
[BlackElo "2867"]
[TimeControl "180+1"]
[EndTime "15:41:03 PDT"]
[Termination "super_emi_26 won by resignation"]

1. e4 {[%clk 0:02:59.6]} 1... g6 {[%clk 0:02:56.2]} 2. d4 {[%clk 0:02:59.1]}
2... Bg7 {[%clk 0:02:52.5]} 3. Nc3 {[%clk 0:02:59.7]} 3... c6 {[%clk 0:02:52.8]}
4. Nf3 {[%clk 0:02:59]} 4... d5 {[%clk 0:02:53.1]} 5. h3 {[%clk 0:02:59.7]} 5...
dxe4 {[%clk 0:02:52.8]} 6. Nxe4 {[%clk 0:03:00.6]} 6... Nf6 {[%clk 0:02:53.7]}
7. Nxf6+ {[%clk 0:03:00.8]} 7... exf6 {[%clk 0:02:54.6]} 8. Bc4 {[%clk 0:03:01]}
8... O-O {[%clk 0:02:55]} 9. O-O {[%clk 0:03:01.7]} 9... Nd7 {[%clk 0:02:55.7]}
10. a4 {[%clk 0:02:59.1]} 10... Nb6 {[%clk 0:02:55.3]} 11. Bb3 {[%clk
0:02:59.8]} 11... Re8 {[%clk 0:02:52.5]} 12. a5 {[%clk 0:02:59.3]} 12... Nd5
{[%clk 0:02:53.1]} 13. c3 {[%clk 0:02:42.2]} 13... Be6 {[%clk 0:02:52.9]} 14.
Re1 {[%clk 0:02:38]} 14... Qd7 {[%clk 0:02:52.8]} 15. Qd3 {[%clk 0:02:31.3]}
15... Rad8 {[%clk 0:02:47.6]} 16. Bd2 {[%clk 0:02:30.2]} 16... h5 {[%clk
0:02:42.9]} 17. Rad1 {[%clk 0:02:22.6]} 17... Bf5 {[%clk 0:02:43.1]} 18. Qc4
{[%clk 0:02:20.7]} 18... Be6 {[%clk 0:02:42.5]} 19. Qd3 {[%clk 0:02:20.5]} 19...
b5 {[%clk 0:02:42.7]} 20. axb6 {[%clk 0:02:17.2]} 20... axb6 {[%clk 0:02:43.1]}
21. Ra1 {[%clk 0:01:52.6]} 21... b5 {[%clk 0:02:43.1]} 22. Ra6 {[%clk
0:01:50.5]} 22... Nf4 {[%clk 0:02:35.4]} 23. Bxe6 {[%clk 0:01:34.4]} 23... Nxe6
{[%clk 0:02:36.3]} 24. Rea1 {[%clk 0:01:31.4]} 24... Nc5 {[%clk 0:02:33.8]} 25.
Qf1 {[%clk 0:01:12.9]} 25... Nxa6 {[%clk 0:02:33.6]} 26. Rxa6 {[%clk 0:01:13.8]}
26... Ra8 {[%clk 0:02:33.9]} 27. Qa1 {[%clk 0:01:11.3]} 27... Qb7 {[%clk
0:02:31.2]} 28. Rxa8 {[%clk 0:01:09.2]} 28... Rxa8 {[%clk 0:02:32.1]} 29. Qe1
{[%clk 0:01:09.1]} 29... Qd7 {[%clk 0:02:29.4]} 30. Qb1 {[%clk 0:01:08.6]} 30...
Qd5 {[%clk 0:02:29.2]} 31. b3 {[%clk 0:01:08]} 31... Ra3 {[%clk 0:02:28.9]} 32.
b4 {[%clk 0:01:07.2]} 32... Ra8 {[%clk 0:02:23.6]} 33. Be3 {[%clk 0:01:04.5]}
33... Re8 {[%clk 0:02:22]} 34. Nd2 {[%clk 0:01:04.9]} 34... f5 {[%clk
0:02:21.3]} 35. g3 {[%clk 0:01:04.2]} 35... h4 {[%clk 0:02:18.5]} 36. gxh4
{[%clk 0:01:02.8]} 36... Bf6 {[%clk 0:02:18.3]} 37. h5 {[%clk 0:01:02.4]} 37...
g5 {[%clk 0:02:18.2]} 38. Nf1 {[%clk 0:01:00.9]} 38... f4 {[%clk 0:02:18.2]} 39.
Bd2 {[%clk 0:01:00.7]} 39... Qe4 {[%clk 0:02:14.3]} 40. Qa2 {[%clk 0:01:00.4]}
40... Qf3 {[%clk 0:02:10.4]} 41. Qa6 {[%clk 0:00:55.7]} 41... Re2 {[%clk
0:02:06.8]} 42. Qc8+ {[%clk 0:00:55.1]} 42... Kg7 {[%clk 0:02:02.8]} 43. h6+
{[%clk 0:00:55.2]} 43... Kxh6 {[%clk 0:02:01.2]} 44. Qf8+ {[%clk 0:00:55.1]}
44... Bg7 {[%clk 0:01:57.4]} 45. Qd6+ {[%clk 0:00:55.7]} 45... Kh7 {[%clk
0:01:57.3]} 46. Be1 {[%clk 0:00:54.9]} 46... Rxe1 {[%clk 0:01:55.8]} 47. Qxc6
{[%clk 0:00:54.8]} 47... Qxc6 {[%clk 0:01:55.7]} 0-1